Cogmind - Beta 13 @@@ ROGUE MODE // 2024.04.21 @ 14:36:24 Player: YBOUZL Result: Destroyed by Y-45 Defender with Heavy Assault Rifle Performance ------------- Evolutions (1) 500 Regions Visited (4) 800 Robots Destroyed (17) 85 Value Destroyed (627) 627 Prototype IDs (0) 0 Alien Tech Used (0) 0 Bonus (0) 0 TOTAL SCORE: 2012 Bonus ------- None Cogmind --------- Core Integrity 0/400 Matter 450/450 Energy 100/100 System Corruption 0% Temperature Cool (9) Movement Core (150) Ox2 Location -9/Storage Parts ------- > --- POWER (1) -------- (None) > --- PROPULSION (4) --- (None) > --- UTILITY (2) ------ Small Storage Unit Large Matter Pod > --- WEAPON (2) ------- (None) > --- INVENTORY (8) ---- Advanced Visual Processing Unit Melee Analysis Suite Peak State ------------ > --- POWER ------------ Light Nuclear Core > --- PROPULSION ------- Aluminum Leg Aluminum Leg Aluminum Leg Aluminum Leg > --- UTILITY ---------- Improved Heat Sink Small Storage Unit > --- WEAPON ----------- Shock Rifle Katana > --- INVENTORY -------- Ion Engine Ion Engine Large Matter Pod Advanced Visual Processing Unit Melee Analysis Suite Assault Rifle Assault Rifle Light Assault Rifle [Rating: 18] Favorites ----------- Power Ion Engine Engine Ion Engine Power Core Light Nuclear Core Propulsion Aluminum Leg Leg Aluminum Leg Utility Small Storage Unit Device Improved Heat Sink Storage Small Storage Unit Weapon Assault Rifle Energy Gun Small Laser Ballistic Gun Assault Rifle Slashing Weapon Katana Build | -11 -10 -10 -9 -9 ------- Run | Yrd Mat Min Mat Sto Slots Evolved 2 | . . . 2 . Power . | . . . . . Propulsion 2 | . . . 2 . Utility . | . . . . . Weapon . | . . . . . Parts Attached 30 | 7 1 6 2 14 Power 5 | 1 . 2 . 2 Engine 4 | 1 . 1 . 2 Core 1 | . . 1 . . Reactor . | . . . . . Propulsion 11 | 2 . 3 2 4 Treads . | . . . . . Leg 11 | 2 . 3 2 4 Wheel . | . . . . . Hover . | . . . . . Flight . | . . . . . Utility 4 | 1 1 1 . 1 Device 2 | . 1 1 . . Storage 2 | 1 . . . 1 Processor . | . . . . . Hackware . | . . . . . Protection . | . . . . . Artifact . | . . . . . Weapon 10 | 3 . . . 7 Energy Gun 2 | 1 . . . 1 Energy Cannon . | . . . . . Ballistic Gun 7 | 2 . . . 5 Ballistic Cannon . | . . . . . Launcher . | . . . . . Special Weapon . | . . . . . Impact Weapon . | . . . . . Slashing Weapon 1 | . . . . 1 Piercing Weapon . | . . . . . Special Melee Weapon . | . . . . . Unidentified Prototypes . | . . . . . Parts Lost 18 | . . . . 18 Power 3 | . . . . 3 Propulsion 8 | . . . . 8 Utility 1 | . . . . 1 Weapon 6 | . . . . 6 Highest Loss Streak 10 | . . . . 10 To Critical Strikes . | . . . . . Average Slot Usage (%) 87 | . 94 100 100 74 Engine 7 | . 14 9 . 2 Core 4 | . . 4 11 6 Leg 27 | . 28 28 44 25 Device 9 | . 9 14 11 6 Storage 14 | . 14 14 11 14 Energy Gun 9 | . 14 14 11 4 Ballistic Gun 11 | . 14 14 11 8 Slashing Weapon 1 | . . . . 3 Naked Turns . | . . . . . Heaviest Build 16 | 13 14 14 14 16 Greatest Support 40 | 20 20 20 40 40 Greatest Overweight (x) 4 | 1 . . . 4 Average Overweight (x) . | . . . . . Largest Inventory Capacity 8 | 8 8 8 8 8 Average Capacity 7 | 7 8 8 8 8 Most Carried 8 | 7 8 8 7 8 Average Carried 5 | 2 3 7 6 5 Final Capacity 8 | 8 8 8 8 8 Final Carried 8 | 2 8 8 6 2 Class Distribution -------------------- 59% | Mutant 40% | Scavenger-Mutant Dominant Class ---------------- Mutant | -10/Materials Mutant | -10/Mines Mutant | -9/Materials Scavenger-Mutant | -9/Storage Resources | -11 -10 -10 -9 -9 ----------- Run | Yrd Mat Min Mat Sto Matter Collected 746 | 206 50 288 . 202 Remotely . | . . . . . Salvage Created 815 | . 73 245 . 497 Parts 50 | . 5 13 . 32 Haulers Intercepted . | . . . . . Recyclers Shooed 1 | . . . . 1 Parts Field Recycled . | . . . . . Retrieved Matter . | . . . . . Parts Self-Destructed . | . . . . . Prevented . | . . . . . Kills | -11 -10 -10 -9 -9 ------- Run | Yrd Mat Min Mat Sto Combat Hostiles Destroyed 15 | . 1 4 . 10 Melee 1 | . . . . 1 Guns 13 | . 1 4 . 8 Classes Destroyed 5 | . 2 1 . 2 Recycler 1 | . . 1 . . Watcher 1 | . 1 . . . Grunt 11 | . 1 4 . 6 Duelist 1 | . . . . 1 Sentry 3 | . . . . 3 Best Kill Streak 3 | . 1 2 . 3 Combat Bots Only 3 | . 1 2 . 3 Max Kills in Single Turn 1 | . 1 1 . 1 Gunslinging . | . . . . . Exploded . | . . . . . Melee 1 | . . . . 1 Uniques/NPCs Destroyed . | . . . . . Combat | -11 -10 -10 -9 -9 -------- Run | Yrd Mat Min Mat Sto Hostile Shots Fired 182 | . 5 46 . 131 Missed 36 | . 1 14 . 21 Damage Taken 2125 | . 46 444 . 1635 Core 572 | . . 164 . 408 Absorbed by Shields . | . . . . . Core Remaining (%) 67 | 100 . 34 . . Volleys Fired 75 | . 4 17 . 54 Largest 2 | . 2 2 . 2 Hottest 60 | . 60 60 . 60 Shots Fired 108 | . 8 34 . 66 Gun 108 | . 8 34 . 66 Cannon . | . . . . . Launcher . | . . . . . Special . | . . . . . Kinetic 61 | . 4 17 . 40 Thermal 28 | . 4 17 . 7 Explosive . | . . . . . Electromagnetic 19 | . . . . 19 Robot Hit Streak 24 | . 3 9 . 24 Robot Miss Streak 3 | . 3 3 . 3 Penetration Max . | . . . . . Secondary Targets 1 | . . . . 1 Max Gunslinging Chain 1 | . . . . 1 Shots Hit Robots 77 | . 4 23 . 50 Core Hits 33 | . 3 12 . 18 Critical Kills . | . . . . . Critical Parts Destroyed . | . . . . . Critical Strikes . | . . . . . Melee Attacks 2 | . . . . 2 Impact . | . . . . . Slashing 2 | . . . . 2 Piercing . | . . . . . Sneak Attacks . | . . . . . Combat Hostiles . | . . . . . Follow-up Attacks . | . . . . . Damage Inflicted 1009 | . 46 299 . 664 Guns 931 | . 46 299 . 586 Cannons . | . . . . . Explosions . | . . . . . Melee 59 | . . . . 59 Ramming 19 | . . . . 19 Kinetic 526 | . 35 165 . 326 Thermal 189 | . 11 134 . 44 Explosive . | . . . . . Electromagnetic 216 | . . . . 216 Impact . | . . . . . Slashing 59 | . . . . 59 Piercing . | . . . . . Highest Corruption . | . . . . . Average Corruption . | . . . . . Corruption Purged . | . . . . . Corruption Blocked . | . . . . . Overload Shots . | . . . . . Overflow Damage . | . . . . . Projectiles . | . . . . . Explosions . | . . . . . Melee . | . . . . . Knockbacks . | . . . . . Impact . | . . . . . Kinetic . | . . . . . Secondary . | . . . . . Self-Inflicted Damage 3 | . . . . 3 Shots . | . . . . . Rammed 3 | . . . . 3 Targets Rammed 9 | . . . . 9 Kicked 6 | . . . . 6 Crushed . | . . . . . Highest Temperature 24 | . 6 23 . 24 Average Temperature 8 | . 6 10 . 7 Received Heat Transfer 1005 | . 24 279 . 702 Siege Activations . | . . . . . Robots Corrupted 1 | . . . . 1 Combat Hostiles 1 | . . . . 1 Parts Fried 1 | . . . . 1 Impact Corruptions . | . . . . . Robots Melted . | . . . . . Combat Hostiles . | . . . . . Parts Melted 2 | . . 2 . . Heat Transferred 425 | . 25 300 . 100 Parts Sabotaged . | . . . . . Parts Stolen . | . . . . . Parts Stripped . | . . . . . Power Chain Reactions . | . . . . . Alert | -11 -10 -10 -9 -9 ------- Run | Yrd Mat Min Mat Sto Peak Influence 201 | . 27 130 50 201 Initial 50 | . . 10 50 20 Average 76 | . 15 70 50 125 Maximum Alert Level 1 | . . . . 1 Low Security (%) 98 | 100 100 100 100 95 Level 1 1 | . . . . 4 Level 2 . | . . . . . Level 3 . | . . . . . Level 4 . | . . . . . Level 5 . | . . . . . High Security . | . . . . . Max Security . | . . . . . Squads Dispatched 3 | . 1 1 . 1 Investigation 2 | . . 1 . 1 Extermination . | . . . . . Reinforcement 1 | . 1 . . . Assault . | . . . . . Garrison . | . . . . . Intercept . | . . . . . Searches Triggered . | . . . . . Construction Impeded . | . . . . . Haulers Reinforced . | . . . . . Active Scanning Responses . | . . . . . Cargo Convoy Interrupts . | . . . . . Stealth | -11 -10 -10 -9 -9 --------- Run | Yrd Mat Min Mat Sto Distress Signals . | . . . . . Communications Jammed . | . . . . . Distress Signals . | . . . . . Times Spotted 20 | . 3 6 . 11 Peak Tracking Total 4 | . 1 4 . 4 Tactical Retreats 1 | . . 1 . . Traps | -11 -10 -10 -9 -9 ------- Run | Yrd Mat Min Mat Sto Traps Triggered . | . . . . . Indirectly . | . . . . . Trap Hack Attempts . | . . . . . Triggered . | . . . . . Disarmed . | . . . . . Reprogrammed . | . . . . . Reused . | . . . . . Traps Extracted . | . . . . . Installed . | . . . . . Triggered . | . . . . . Machines | -11 -10 -10 -9 -9 ---------- Run | Yrd Mat Min Mat Sto Machines Disabled 1 | . . . . 1 Max in Single Turn 1 | . . . . 1 Machines Repaired . | . . . . . Machines Dismantled . | . . . . . Machines Sabotaged . | . . . . . Overloaded Fab Kills . | . . . . . Hacking | -11 -10 -10 -9 -9 --------- Run | Yrd Mat Min Mat Sto Machines Accessed 5 | . 1 1 . 3 Terminals 3 | . 1 . . 2 Fabricators . | . . . . . Repair Stations . | . . . . . Recycling Units 1 | . . . . 1 Scanalyzers . | . . . . . Garrison Access . | . . . . . Total Hacks 10 | . 4 1 . 5 Successful 5 | . 1 1 . 3 Failed 5 | . 3 . . 2 Catastrophic 1 | . 1 . . . Database Lockouts . | . . . . . Manual . | . . . . . Terminals 6 | . 4 . . 2 Fabricators . | . . . . . Repair Stations . | . . . . . Recycling Units 3 | . . . . 3 Scanalyzers . | . . . . . Garrison Access . | . . . . . Terminal Hacks 3 | . 1 1 . 1 Record 1 | . . . . 1 Open Door 1 | . . 1 . . Security Status 1 | . 1 . . . Fabricator Hacks . | . . . . . Repair Station Hacks . | . . . . . Recycling Unit Hacks 2 | . . . . 2 Retrieve Matter 1 | . . . . 1 Retrieve Components 1 | . . . . 1 Scanalyzer . | . . . . . Garrison Access Hacks . | . . . . . Unauthorized Hacks . | . . . . . Terminals . | . . . . . Fabricators . | . . . . . Repair Stations . | . . . . . Recycling Units . | . . . . . Scanalyzers . | . . . . . Garrison Access . | . . . . . Data Cores Recovered . | . . . . . Used . | . . . . . Hacking Detections 4 | . 1 . . 3 Full Trace Events 1 | . . . . 1 Feedback Events . | . . . . . Feedback Blocked . | . . . . . Robot Schematics Acquired . | . . . . . Robots Built . | . . . . . Authchips . | . . . . . Time . | . . . . . Total Robot Build Rating . | . . . . . Part Schematics Acquired . | . . . . . Parts Built . | . . . . . Authchips . | . . . . . Time . | . . . . . Total Part Build Rating . | . . . . . Parts Repaired . | . . . . . Time . | . . . . . Parts Recycled . | . . . . . Recycled Matter . | . . . . . Retrieved Matter . | . . . . . Retrieved Components 10 | . . . . 10 Parts Scanalyzed . | . . . . . Part Schematics Acquired . | . . . . . Parts Damaged . | . . . . . Bothacking | -11 -10 -10 -9 -9 ------------ Run | Yrd Mat Min Mat Sto Used RIF Installer . | . . . . . Robots Hacked . | . . . . . Non-combat . | . . . . . Combat . | . . . . . Robot Hacks Applied . | . . . . . Relay Couplers Released . | . . . . . Fabnet Peak Effective % . | . . . . . Robots Rewired . | . . . . . Allies Hacked . | . . . . . Hacks Repelled . | . . . . . Allies | -11 -10 -10 -9 -9 -------- Run | Yrd Mat Min Mat Sto Total Allies . | . . . . . Largest Group . | . . . . . Highest-Rated Group . | . . . . . Highest-Rated Ally . | . . . . . Total Orders . | . . . . . Ally Attacks . | . . . . . Total Damage . | . . . . . Kills . | . . . . . Allies Corrupted . | . . . . . Allies Melted . | . . . . . Intel | -11 -10 -10 -9 -9 ------- Run | Yrd Mat Min Mat Sto Robot Analysis Total . | . . . . . Derelict Logs Recovered . | . . . . . Drone Launches . | . . . . . Drone Recoveries . | . . . . . Exploration | -11 -10 -10 -9 -9 ------------- Run | Yrd Mat Min Mat Sto Turns Passed 894 | 74 170 272 12 366 Spaces Moved 513 | 54 126 172 9 152 Core 30 | 22 . . . 8 Treads . | . . . . . Legs 483 | 32 126 172 9 144 Wheels . | . . . . . Hover . | . . . . . Flight . | . . . . . Fastest Speed 50 | 50 120 120 120 100 Average Speed 123 | 110 120 120 120 135 Slowest Speed 250 | 120 120 120 120 250 Overloaded Moves . | . . . . . Propulsion Burnouts . | . . . . . Robots Hopped . | . . . . . Cave-ins Triggered . | . . . . . Exploration Rate (%) 17 | 4 25 34 2 23 Regions Visited 4 Branch Regions 2 Pre-discovered Areas . | . . . . . Known Exits Taken . | . . . . . Unknown Exits Taken 4 | 1 1 1 1 . Scrap Searched 1 | . . 1 . . Spaces Dug . | . . . . . Terrain Destroyed . | . . . . . Melee . | . . . . . Projectile . | . . . . . AOE . | . . . . . Terrain Rammed . | . . . . . Walls Destroyed . | . . . . . Machines Disabled . | . . . . . Actions | -11 -10 -10 -9 -9 --------- Run | Yrd Mat Min Mat Sto Total 660 | 68 137 208 10 237 Wait . | . . . . . Move 509 | 53 125 171 8 152 Hop . | . . . . . Pick Up 24 | 8 7 4 . 5 Fast Attach 3 | . . 1 . 2 Attach 19 | 6 1 . 2 10 Detach 1 | . . . . 1 Swap 8 | 1 . 5 . 2 Drop 10 | . . 10 . . Fire 75 | . 4 17 . 54 Melee 2 | . . . . 2 Ram 3 | . . . . 3 Kick 6 | . . . . 6 Crush . | . . . . . Escape Stasis . | . . . . . Rewire . | . . . . . Trap . | . . . . . Miscellaneous . | . . . . . Route ------- -11/Scrapyard -10/Materials -10/Mines -9/Materials -9/Storage History --------- Turn | Location | Event 9 | -11/Scrapyard | Discovered new exit (range 15) 75 | -11/Scrapyard | Entered Materials 214 | -10/Materials | Discovered new exit (range 7) 245 | -10/Materials | Entered Mines 287 | -10/Mines | Met a Derelict bent on vengeance 303 | -10/Mines | Build established: Mutant 311 | -10/Mines | Found a damaged Exp. Sensor Array with a note attached 374 | -10/Mines | Core integrity fell below 50% 455 | -10/Mines | Discovered new exit (range 10) 461 | -10/Mines | Met a Derelict shopkeep closing up shop 517 | -10/Mines | Entered Materials 517 | -9/Materials | Evolved 2 slots: Propulsion x2 519 | -9/Materials | Discovered new exit (range 8) 529 | -9/Materials | Entered Storage 717 | -9/Storage | Build established: Scavenger-Mutant 775 | -9/Storage | Core integrity fell below 50% 801 | -9/Storage | Lost 10 parts (1p4n1u4w) 890 | -9/Storage | Core integrity fell below 20% 895 | -9/Storage | Destroyed by Y-45 Defender with Heavy Assault Rifle Last Messages --------------- K-01 Serf collects debris. K-01 Serf cleans the Transfer Shaft. Connecting with Terminal... >>Query(Lightweight Power Sources) Many engines, cores, and reactors have an alternative lightweight variant that retains the generation efficiency of its standard version but minimizes built-in battery space to reduce weight for certain robot designs, especially those with strict weight restrictions such as hovering and flight-based models. Ion Engine destroyed. Connecting with Door Terminal... Critical hit (Burn: +37). Lgt. Assault Rifle destroyed. Kicked Y-45 Defender. Aluminum Leg destroyed. Ion Engine destroyed. Slammed into Y-45 Defender. Map ----- +----------------------------------------------------+ | | | | | | | | | | | | | | | | | | | | | | | | | | | | | | | ????????????????????????????????????????????? | | ????????????????????????????????????????????? | | ????????????????????????????????????????????? | | ????????????????????????????????????????????? | | ????????????????????????????????????????????? | | ??????????????????????###"##????????????????? | | ??????????????????????#T%% #???#????????????? | | ??????????????????????###+####T#"???????????? | | ????????????????# ??????#%% "???????????? | | ????????????????? ????# Y "???????????? | | ?????????????????" """??#@ #####"???????????? | | ?????????????????" """ # #????????????????? | | ?????????????????" """ + #????????????????? | | ?????????????? # #????????????????? | | ?????????????#+########## ##???????????????? | | ?????????????# ######### #???????????????? | | ??????????+ #???????????????? | | ??????????# T #???????????????? | | ?????????????###+##+#### #???????????????? | | ?????????????????????####+#####?????????????? | | ?????????????????????# #?????????????? | | ?????????????????????# """ #?????????????? | | ?????????????????????# """ #?????????????? | | ????????????????????## """ #?????????????? | | ????????????????????# #?????????????? | | ????????????????????## """ #?????????????? | | ?????????????????????# """ #?????????????? | | ?????????????????????#%"" % #?????????????? | | ?????????????????????# %% #????###+###??? | | ?????????????????????######+######## #??? | | ?????????????????????????# #??? | | ?????????????????######### #??? | | ?????????????????# + #??? | | ?????????????????# ### ######## #??? | | ?????????????????# /??#+######### ##??? | +----------------------------------------------------+ Best States ------------- Heat Dissipation 42 Energy Generation 14 Energy Capacity 250 Matter Stores 450 Matter Capacity 450 Sight Range 16 Terrain Scan Density 10 Evasion (%) 55 Item Schematics ----------------- None Robot Schematics ------------------ None Fabricated ------------ Nothing Alien Tech Used ----------------- None Achievements -------------- Power Corrupts Challenges ------------ None Game ------ Seed DroneLobotomyRegenerator Manual? 0 Play Time 00:16:34 Cumulative 5.1 hours Start 2024.04.21 @ 14:22:54 End 2024.04.21 @ 14:36:24 Sessions 1 Manual Loads 0 Difficulty Rogue Special Mode None Game No. 15 Rogue 15 Adventurer 0 Explorer 0 Win Type - Total 0 Types 0/0/0/0/0/0/0/0/0 Lore% 12 Gallery% 12 Achievement% 11 Wizard Run 0 Options --------- Layout 1 ASCII 0 Keyboard 0 Movement Mouse Keybinds 0 Fullscreen 1 Font 24/Smallcaps Map View 50x35 Zoom Use 0% Tactical HUD 0 Map Filters NONE Filters NONE Steam 1 RUN: c58332c9-569b-45a9-b6d1-e71bddb7ce32